[Event "Grand Prix Romania 1st Stage 2024"]
[Site "Bucuresti"]
[Date "2024.03.24"]
[Round "8.29"]
[White "Voiteanu, Gabriel"]
[Black "Filip, Lucian-Ioan"]
[Result "0-1"]
[ECO "E15"]
[WhiteElo "2120"]
[BlackElo "2359"]
[Annotator "RC"]
[PlyCount "76"]
[EventDate "2024.03.20"]
[EventType "swiss"]
[EventCountry "ROU"]
[SourceTitle "playchess.com"]
[Source "ChessBase"]
[SourceQuality "1"]
[TimeControl "900+5"]

1. d4 {[%emt 0:00:03]} Nf6 {[%emt 0:00:00]} 2. c4 {[%emt 0:00:03]} e6 {[%emt 0:00:01]} 3. Nf3 {[%emt 0:00:13]} b6 {[%emt 0:00:05]} 4. g3 {[%emt 0:00:06]} Ba6 {[%emt 0:00:02]} 5. Qc2 {[%emt 0:00:49]} c5 {[%emt 0:01:06]} 6. d5 {[%emt 0:01:05]} exd5 {[%emt 0:00:04]} 7. cxd5 {[%emt 0:00:02]} Bb7 {[%emt 0:00:09]} 8. Nc3 {[%emt 0:03:44]} Nxd5 {[%emt 0:03:28]} 9. Nxd5 {[%emt 0:01:37]} Bxd5 {[%emt 0:00:01]} 10. Bg2 {[%emt 0:00:50]} Be7 {[%emt 0:00:08]} 11. O-O {[%emt 0:00:10]} Nc6 {[%emt 0:01:01]} 12. Rd1 {[%emt 0:02:16]} Be6 {[%emt 0:00:04]} 13. Bf4 {[%emt 0:02:18]} Rc8 {[%emt 0:04:56]} 14. Ne5 {[%emt 0:00:59]} Nd4 {[%emt 0:00:55]} 15. Qd3 {[%emt 0:00:34]} f6 {[%emt 0:01:37]} 16. Nc4 {[%emt 0:00:50]} d5 {[%emt 0:00:33]} 17. Na3 {[%emt 0:00:28]} Qd7 {[%emt 0:01:17]} 18. e3 {[%emt 0:00:13]} Nc6 {[%emt 0:00:00]} 19. Bxd5 {[%emt 0:00:10]} Bxd5 {[%emt 0:00:52]} 20. Qxd5 {[%emt 0:00:01]} Qxd5 {[%emt 0:00:02]} 21. Rxd5 {[%emt 0:00:01]} g5 {[%emt 0:00:15]} 22. Bd6 {[%emt 0:00:02]} Rd8 {[%emt 0:00:03]} 23. Rad1 {[%emt 0:00:03]} Nb4 {[%emt 0:00:02]} 24. Bxe7 {[%emt 0:00:14]} Rxd5 {[%emt 0:00:02]} 25. Rxd5 {[%emt 0:00:04]} Nxd5 {[%emt 0:00:01]} 26. e4 {[%emt 0:00:04]} Kxe7 {[%emt 0:00:02]} 27. exd5 {[%emt 0:00:01]} Rd8 {[%emt 0:00:02]} 28. Kf1 {[%emt 0:00:11]} Rxd5 {[%emt 0:00:02]} 29. Ke2 {[%emt 0:00:01]} a6 {[%emt 0:00:04]} 30. Nc4 {[%emt 0:00:03]} b5 {[%emt 0:00:03]} 31. Ne3 {[%emt 0:00:01]} Rd8 {[%emt 0:00:18]} 32. Nf5+ {[%emt 0:00:14]} Ke6 {[%emt 0:00:02]} 33. Ne3 {[%emt 0:00:02]} f5 {[%emt 0:00:04]} 34. f4 {[%emt 0:00:07]} gxf4 {[%emt 0:00:10]} 35. gxf4 {[%emt 0:00:01]} Rd4 {[%emt 0:00:01]} 36. Ng2 {[%emt 0:00:04]} Rb4 {[%emt 0:00:14]} 37. b3 {[%emt 0:00:02]} c4 {[%emt 0:00:00]} 38. bxc4 {[%emt 0:00:08]} Rxc4 {[%emt 0:00:06]} 0-1

[Event "Grand Prix Romania 1st Stage 2024"]
[Site "Bucuresti"]
[Date "2024.03.24"]
[Round "8.30"]
[White "Ciocani, Iosif"]
[Black "Toma, Radu-Cristian"]
[Result "0-1"]
[ECO "C41"]
[WhiteElo "2177"]
[BlackElo "2386"]
[Annotator "RC"]
[PlyCount "108"]
[EventDate "2024.03.20"]
[EventType "swiss"]
[EventCountry "ROU"]
[SourceTitle "playchess.com"]
[Source "ChessBase"]
[SourceQuality "1"]
[TimeControl "900+5"]

1. e4 {[%emt 0:00:02]} d6 {[%emt 0:00:02]} 2. d4 {[%emt 0:00:03]} Nf6 {[%emt 0:00:01]} 3. Nc3 {[%emt 0:00:03]} e5 {[%emt 0:00:03]} 4. Nf3 {[%emt 0:00:16]} Nbd7 {[%emt 0:00:11]} 5. Bc4 {[%emt 0:00:15]} Be7 {[%emt 0:00:20]} 6. O-O {[%emt 0:00:11]} c6 {[%emt 0:01:24]} 7. a4 {[%emt 0:00:05]} h6 {[%emt 0:00:20]} 8. Re1 {[%emt 0:00:34]} O-O {[%emt 0:00:15]} 9. h3 {[%emt 0:00:29]} b6 {[%emt 0:00:08]} 10. d5 {[%emt 0:01:41]} Bb7 {[%emt 0:01:19]} 11. dxc6 {[%emt 0:02:22]} Bxc6 {[%emt 0:00:01]} 12. b4 {[%emt 0:02:39]} a5 {[%emt 0:03:12]} 13. Ba3 {[%emt 0:01:02]} axb4 {[%emt 0:01:29]} 14. Bxb4 {[%emt 0:00:08]} Qc7 {[%emt 0:01:25]} 15. Nb5 {[%emt 0:03:38]} Bxb5 {[%emt 0:00:06]} 16. Bxb5 {[%emt 0:00:04]} Rfd8 {[%emt 0:00:48]} 17. c4 {[%emt 0:00:18]} Nc5 {[%emt 0:00:38]} 18. Qc2 {[%emt 0:00:03]} Nfd7 {[%emt 0:01:04]} 19. Nd2 {[%emt 0:00:13]} Nf8 {[%emt 0:00:14]} 20. Nf1 {[%emt 0:00:36]} Nfe6 {[%emt 0:00:36]} 21. Ne3 {[%emt 0:00:51]} Nd4 {[%emt 0:00:09]} 22. Qb1 {[%emt 0:00:13]} Rdc8 {[%emt 0:01:07]} 23. Nd5 {[%emt 0:00:05]} Qd8 {[%emt 0:00:02]} 24. Bc3 {[%emt 0:00:18]} Ncb3 {[%emt 0:00:24]} 25. Ra3 {[%emt 0:00:14]} Nxb5 {[%emt 0:00:02]} 26. Rxb3 {[%emt 0:00:42]} Nxc3 {[%emt 0:00:02]} 27. Rxc3 {[%emt 0:00:06]} Ra5 {[%emt 0:00:49]} 28. Qxb6 {[%emt 0:00:05]} Qxb6 {[%emt 0:00:03]} 29. Nxb6 {[%emt 0:00:02]} Rb8 {[%emt 0:00:03]} 30. Nd5 {[%emt 0:00:09]} Bg5 {[%emt 0:00:08]} 31. Ra1 {[%emt 0:00:03]} Rb2 {[%emt 0:00:06]} 32. Kf1 {[%emt 0:00:07]} g6 {[%emt 0:00:13]} 33. g3 {[%emt 0:00:02]} f5 {[%emt 0:00:15]} 34. exf5 {[%emt 0:00:05]} gxf5 {[%emt 0:00:01]} 35. h4 {[%emt 0:00:06]} Bd8 {[%emt 0:00:08]} 36. Rd3 {[%emt 0:00:06]} Kf7 {[%emt 0:00:06]} 37. Ke1 {[%emt 0:00:04]} Ke6 {[%emt 0:00:06]} 38. Rd2 {[%emt 0:00:04]} Rb3 {[%emt 0:00:16]} 39. Rdd1 {[%emt 0:00:04]} Rc5 {[%emt 0:00:05]} 40. Rdc1 {[%emt 0:00:03]} Rb2 {[%emt 0:00:05]} 41. Kf1 {[%emt 0:00:08]} h5 {[%emt 0:00:13]} 42. Ne3 {[%emt 0:00:04]} f4 {[%emt 0:00:07]} 43. gxf4 {[%emt 0:00:04]} Bxh4 {[%emt 0:00:15]} 44. fxe5 {[%emt 0:00:10]} Rxf2+ {[%emt 0:00:05]} 45. Kg1 {[%emt 0:00:01]} Rxe5 {[%emt 0:00:02]} 46. Re1 {[%emt 0:00:09]} Rf3 {[%emt 0:00:06]} 47. Ng2 {[%emt 0:00:07]} Bxe1 {[%emt 0:00:02]} 48. Nxe1 {[%emt 0:00:02]} Rg5+ {[%emt 0:00:07]} 49. Kh2 {[%emt 0:00:03]} Rf4 {[%emt 0:00:03]} 50. Kh3 {[%emt 0:00:02]} Ra5 {[%emt 0:00:07]} 51. Ra3 {[%emt 0:00:03]} Rxc4 {[%emt 0:00:03]} 52. Nd3 {[%emt 0:00:06]} Raxa4 {[%emt 0:00:07]} 53. Rb3 {[%emt 0:00:01]} Re4 {[%emt 0:00:07]} 54. Rb6 {[%emt 0:00:02]} Ra3 {[%emt 0:00:04]} 0-1

[Event "Grand Prix Romania 1st Stage 2024"]
[Site "Bucuresti"]
[Date "2024.03.24"]
[Round "8.31"]
[White "Zubcu, Vlad-George"]
[Black "Manea, Alexandru"]
[Result "0-1"]
[ECO "B23"]
[WhiteElo "2181"]
[BlackElo "2287"]
[Annotator "RC"]
[PlyCount "120"]
[EventDate "2024.03.20"]
[EventType "swiss"]
[EventCountry "ROU"]
[SourceTitle "playchess.com"]
[Source "ChessBase"]
[SourceQuality "1"]
[TimeControl "900+5"]

1. e4 {[%emt 0:00:03]} c5 {[%emt 0:00:01]} 2. Nc3 {[%emt 0:00:01]} e6 {[%emt 0:00:05]} 3. g3 {[%emt 0:00:03]} h5 {[%emt 0:00:06]} 4. Bg2 {[%emt 0:00:28]} h4 {[%emt 0:00:02]} 5. g4 {[%emt 0:00:09]} e5 {[%emt 0:00:56]} 6. d3 {[%emt 0:00:28]} g5 {[%emt 0:00:03]} 7. h3 {[%emt 0:00:27]} d6 {[%emt 0:00:04]} 8. Nf3 {[%emt 0:00:57]} f6 {[%emt 0:00:05]} 9. b4 {[%emt 0:00:14]} cxb4 {[%emt 0:00:42]} 10. Nd5 {[%emt 0:00:01]} Nc6 {[%emt 0:00:02]} 11. Bd2 {[%emt 0:01:19]} Be6 {[%emt 0:00:41]} 12. Nxb4 {[%emt 0:00:09]} Nxb4 {[%emt 0:00:02]} 13. Bxb4 {[%emt 0:00:02]} Ne7 {[%emt 0:00:37]} 14. c4 {[%emt 0:00:40]} Nc6 {[%emt 0:01:14]} 15. Bd2 {[%emt 0:00:07]} Be7 {[%emt 0:00:01]} 16. a4 {[%emt 0:01:39]} Qd7 {[%emt 0:00:01]} 17. a5 {[%emt 0:00:19]} Kf7 {[%emt 0:00:01]} 18. O-O {[%emt 0:00:41]} Rab8 {[%emt 0:02:11]} 19. Kh2 {[%emt 0:00:10]} b5 {[%emt 0:00:25]} 20. axb6 {[%emt 0:00:03]} Rxb6 {[%emt 0:00:01]} 21. Be3 {[%emt 0:00:24]} Rb7 {[%emt 0:00:00]} 22. Qc1 {[%emt 0:00:40]} Kg6 {[%emt 0:01:59]} 23. d4 {[%emt 0:00:15]} Bf7 {[%emt 0:02:29]} 24. d5 {[%emt 0:00:04]} Nb8 {[%emt 0:00:02]} 25. c5 {[%emt 0:00:05]} dxc5 {[%emt 0:00:05]} 26. Bxg5 {[%emt 0:00:02]} Kg7 {[%emt 0:00:36]} 27. Bxh4 {[%emt 0:01:09]} Rb3 {[%emt 0:00:02]} 28. Qd1 {[%emt 0:01:18]} Rxf3 {[%emt 0:00:03]} 29. Qxf3 {[%emt 0:00:05]} Rxh4 {[%emt 0:00:01]} 30. Rfb1 {[%emt 0:00:44]} Rh8 {[%emt 0:00:10]} 31. Kg1 {[%emt 0:00:22]} c4 {[%emt 0:00:17]} 32. Bf1 {[%emt 0:00:34]} Bc5 {[%emt 0:00:46]} 33. Bxc4 {[%emt 0:00:07]} Bb6 {[%emt 0:00:12]} 34. Kg2 {[%emt 0:00:19]} Qd6 {[%emt 0:00:02]} 35. Bb5 {[%emt 0:01:05]} Bg6 {[%emt 0:00:24]} 36. Qe2 {[%emt 0:00:28]} Qe7 {[%emt 0:02:02]} 37. Rc1 {[%emt 0:00:15]} Qd6 {[%emt 0:00:05]} 38. f3 {[%emt 0:00:43]} Qd8 {[%emt 0:00:29]} 39. Rh1 {[%emt 0:00:19]} Nd7 {[%emt 0:00:04]} 40. Bxd7 {[%emt 0:00:13]} Qxd7 {[%emt 0:00:01]} 41. h4 {[%emt 0:00:04]} Qd6 {[%emt 0:00:11]} 42. Qc4 {[%emt 0:00:08]} Be8 {[%emt 0:00:04]} 43. h5 {[%emt 0:00:22]} Bd7 {[%emt 0:00:01]} 44. Rhc1 {[%emt 0:00:21]} Rc8 {[%emt 0:00:40]} 45. Qe2 {[%emt 0:00:17]} Rxc1 46. Rxc1 Qa3 {[%emt 0:00:05]} 47. Qc2 {[%emt 0:00:19]} Qe3 {[%emt 0:00:09]} 48. Rd1 {[%emt 0:00:13]} Bb5 {[%emt 0:00:26]} 49. Qd2 {[%emt 0:00:04]} Qb3 {[%emt 0:00:17]} 50. d6 {[%emt 0:00:02]} Bd7 {[%emt 0:00:00]} 51. g5 {[%emt 0:00:04]} Qf7 {[%emt 0:00:05]} 52. g6 {[%emt 0:00:06]} Qe6 {[%emt 0:00:00]} 53. Rh1 {[%emt 0:00:07]} f5 {[%emt 0:00:12]} 54. h6+ {[%emt 0:00:00]} Kh8 {[%emt 0:00:05]} 55. Qg5 {[%emt 0:00:13]} Qa2+ {[%emt 0:00:01]} 56. Kh3 {[%emt 0:00:07]} fxe4+ {[%emt 0:00:01]} 57. Kh4 {[%emt 0:00:05]} Qf2+ {[%emt 0:00:03]} 58. Qg3 {[%emt 0:00:02]} Bd8+ {[%emt 0:00:08]} 59. Kh5 {[%emt 0:00:04]} Qxg3 {[%emt 0:00:00]} 60. g7+ {[%emt 0:00:01]} Kh7 {[%emt 0:00:28]} 0-1

[Event "Grand Prix Romania 1st Stage 2024"]
[Site "Bucuresti"]
[Date "2024.03.24"]
[Round "8.32"]
[White "Veress, Armand"]
[Black "Cosma, Ioan"]
[Result "1-0"]
[ECO "D35"]
[WhiteElo "2098"]
[BlackElo "2316"]
[Annotator "RC"]
[PlyCount "79"]
[EventDate "2024.03.20"]
[EventType "swiss"]
[EventCountry "ROU"]
[SourceTitle "playchess.com"]
[Source "ChessBase"]
[SourceQuality "1"]
[TimeControl "900+5"]

1. d4 {[%emt 0:00:03]} Nf6 {[%emt 0:00:04]} 2. Nf3 {[%emt 0:00:04]} d5 {[%emt 0:00:05]} 3. c4 {[%emt 0:00:06]} e6 {[%emt 0:00:04]} 4. Nc3 {[%emt 0:00:03]} Nbd7 {[%emt 0:00:12]} 5. cxd5 {[%emt 0:00:19]} exd5 {[%emt 0:00:03]} 6. Bg5 {[%emt 0:00:02]} h6 {[%emt 0:00:18]} 7. Bf4 {[%emt 0:00:20]} Bb4 {[%emt 0:00:38]} 8. e3 {[%emt 0:00:23]} c5 {[%emt 0:00:15]} 9. Bd3 {[%emt 0:00:34]} c4 {[%emt 0:02:08]} 10. Bc2 {[%emt 0:01:07]} O-O {[%emt 0:00:15]} 11. O-O {[%emt 0:00:03]} Bxc3 {[%emt 0:00:24]} 12. bxc3 {[%emt 0:00:02]} Qa5 {[%emt 0:00:02]} 13. Qc1 {[%emt 0:01:35]} Re8 {[%emt 0:00:44]} 14. Ne5 {[%emt 0:00:43]} Nxe5 {[%emt 0:01:00]} 15. Bxe5 {[%emt 0:00:05]} Ne4 {[%emt 0:00:30]} 16. f3 {[%emt 0:01:48]} Nc5 {[%emt 0:01:30]} 17. Qe1 {[%emt 0:00:46]} Nd7 {[%emt 0:00:31]} 18. Bf4 {[%emt 0:00:21]} Nf8 {[%emt 0:00:28]} 19. e4 {[%emt 0:00:23]} Bf5 {[%emt 0:00:25]} 20. Be5 {[%emt 0:00:33]} Bg6 {[%emt 0:00:20]} 21. Rc1 {[%emt 0:01:29]} Re6 {[%emt 0:00:36]} 22. exd5 {[%emt 0:00:43]} Qxd5 {[%emt 0:00:25]} 23. Qg3 {[%emt 0:00:19]} f6 {[%emt 0:01:15]} 24. Bxg6 {[%emt 0:02:06]} Nxg6 {[%emt 0:00:02]} 25. Qxg6 {[%emt 0:00:09]} fxe5 {[%emt 0:00:02]} 26. Qh5 {[%emt 0:00:04]} Rd8 {[%emt 0:00:18]} 27. Rce1 {[%emt 0:00:12]} Qa5 {[%emt 0:00:36]} 28. f4 {[%emt 0:00:48]} Qxc3 {[%emt 0:00:21]} 29. dxe5 {[%emt 0:00:01]} Rd2 {[%emt 0:01:07]} 30. Qg4 {[%emt 0:00:59]} Qd4+ {[%emt 0:01:04]} 31. Kh1 {[%emt 0:00:02]} Re8 {[%emt 0:00:26]} 32. Qg6 {[%emt 0:00:04]} Rd8 {[%emt 0:00:37]} 33. f5 {[%emt 0:00:13]} h5 {[%emt 0:00:22]} 34. h3 {[%emt 0:00:36]} Rf8 {[%emt 0:00:37]} 35. f6 {[%emt 0:00:06]} Rf7 {[%emt 0:00:08]} 36. fxg7 {[%emt 0:00:30]} Rdf2 {[%emt 0:00:06]} 37. Rxf2 {[%emt 0:00:15]} Rxf2 {[%emt 0:00:12]} 38. e6 {[%emt 0:00:19]} Qf4 {[%emt 0:00:05]} 39. e7 {[%emt 0:00:05]} Rf1+ {[%emt 0:00:05]} 40. Rxf1 {[%emt 0:00:05]} 1-0

[Event "Grand Prix Romania 1st Stage 2024"]
[Site "Bucuresti"]
[Date "2024.03.24"]
[Round "8.33"]
[White "Dobre, Claudiu-Cristian"]
[Black "Vedmediuc, Artiom"]
[Result "1-0"]
[ECO "D12"]
[WhiteElo "2259"]
[BlackElo "2035"]
[Annotator "RC"]
[PlyCount "68"]
[EventDate "2024.03.20"]
[EventType "swiss"]
[EventCountry "ROU"]
[SourceTitle "playchess.com"]
[Source "ChessBase"]
[SourceQuality "1"]
[TimeControl "900+5"]

1. d4 {[%emt 0:00:03]} d5 {[%emt 0:00:01]} 2. Nf3 {[%emt 0:00:02]} Nf6 {[%emt 0:00:01]} 3. e3 {[%emt 0:00:01]} c6 {[%emt 0:00:02]} 4. c4 {[%emt 0:00:02]} Bf5 {[%emt 0:00:01]} 5. Nc3 {[%emt 0:00:03]} e6 {[%emt 0:00:00]} 6. Nh4 {[%emt 0:00:05]} Bg6 {[%emt 0:00:09]} 7. Qb3 {[%emt 0:00:02]} Qc7 {[%emt 0:00:31]} 8. Nxg6 {[%emt 0:01:37]} hxg6 {[%emt 0:00:01]} 9. Be2 {[%emt 0:00:15]} Be7 {[%emt 0:00:19]} 10. Bd2 {[%emt 0:00:20]} Nbd7 {[%emt 0:00:05]} 11. g3 {[%emt 0:01:22]} O-O {[%emt 0:01:14]} 12. O-O {[%emt 0:00:45]} dxc4 {[%emt 0:00:27]} 13. Qxc4 {[%emt 0:02:32]} e5 {[%emt 0:00:14]} 14. Rac1 {[%emt 0:02:13]} Nb6 {[%emt 0:00:36]} 15. Qb3 {[%emt 0:00:05]} Rad8 {[%emt 0:01:56]} 16. Rfd1 {[%emt 0:01:58]} exd4 {[%emt 0:00:09]} 17. Nb5 {[%emt 0:00:14]} Qb8 {[%emt 0:00:30]} 18. Nxd4 {[%emt 0:00:05]} Nbd5 {[%emt 0:00:53]} 19. a4 {[%emt 0:00:30]} Rd7 {[%emt 0:00:43]} 20. Bf1 {[%emt 0:00:16]} Ne4 {[%emt 0:01:13]} 21. Be1 {[%emt 0:00:09]} Bf6 {[%emt 0:02:55]} 22. f3 {[%emt 0:01:29]} Ng5 {[%emt 0:00:35]} 23. Bg2 {[%emt 0:02:34]} Re8 {[%emt 0:01:07]} 24. e4 {[%emt 0:00:06]} Nb6 {[%emt 0:00:21]} 25. Bf2 {[%emt 0:00:08]} Qd8 {[%emt 0:00:18]} 26. Ne2 {[%emt 0:00:10]} Ree7 {[%emt 0:01:20]} 27. h4 {[%emt 0:00:06]} Ne6 {[%emt 0:00:03]} 28. Bh3 {[%emt 0:00:05]} Rxd1+ {[%emt 0:00:47]} 29. Rxd1 {[%emt 0:00:13]} Rd7 {[%emt 0:00:02]} 30. Rxd7 {[%emt 0:00:00]} Qxd7 {[%emt 0:00:06]} 31. Nf4 {[%emt 0:00:00]} Qd2 {[%emt 0:00:44]} 32. Bxe6 {[%emt 0:00:03]} fxe6 {[%emt 0:00:06]} 33. Qxe6+ {[%emt 0:00:01]} Kh7 {[%emt 0:00:11]} 34. e5 {[%emt 0:00:01]} Qd1+ {[%emt 0:00:15]} 1-0

[Event "Grand Prix Romania 1st Stage 2024"]
[Site "Bucuresti"]
[Date "2024.03.24"]
[Round "8.34"]
[White "Petrescu, Georgian-Dorin"]
[Black "Lauda, Alexandr"]
[Result "0-1"]
[ECO "E90"]
[WhiteElo "2064"]
[BlackElo "2198"]
[Annotator "RC"]
[PlyCount "88"]
[EventDate "2024.03.20"]
[EventType "swiss"]
[EventCountry "ROU"]
[SourceTitle "playchess.com"]
[Source "ChessBase"]
[SourceQuality "1"]
[TimeControl "900+5"]

1. d4 {[%emt 0:00:03]} Nf6 {[%emt 0:00:01]} 2. Nf3 {[%emt 0:00:02]} g6 {[%emt 0:00:02]} 3. c4 {[%emt 0:00:17]} Bg7 {[%emt 0:00:01]} 4. Nc3 {[%emt 0:00:03]} d6 {[%emt 0:00:03]} 5. e4 {[%emt 0:00:03]} O-O {[%emt 0:00:05]} 6. Bg5 {[%emt 0:00:20]} c5 {[%emt 0:00:47]} 7. d5 {[%emt 0:00:06]} h6 {[%emt 0:00:22]} 8. Bh4 {[%emt 0:00:15]} e6 {[%emt 0:00:11]} 9. Bd3 {[%emt 0:00:18]} exd5 {[%emt 0:01:02]} 10. cxd5 {[%emt 0:00:04]} a6 {[%emt 0:00:09]} 11. a4 {[%emt 0:00:02]} Re8 {[%emt 0:00:59]} 12. O-O {[%emt 0:01:03]} Nbd7 {[%emt 0:00:31]} 13. Bg3 {[%emt 0:00:51]} Ne5 {[%emt 0:00:27]} 14. Bxe5 {[%emt 0:00:15]} dxe5 {[%emt 0:00:01]} 15. Nd2 {[%emt 0:01:22]} Nh5 {[%emt 0:00:04]} 16. Nc4 {[%emt 0:00:29]} Nf4 {[%emt 0:00:11]} 17. Ne2 {[%emt 0:01:55]} Rb8 {[%emt 0:03:27]} 18. a5 {[%emt 0:00:12]} Bd7 {[%emt 0:00:44]} 19. Nxf4 {[%emt 0:01:22]} exf4 {[%emt 0:00:02]} 20. Qf3 {[%emt 0:00:16]} Qg5 {[%emt 0:00:12]} 21. g3 {[%emt 0:00:52]} Bh3 {[%emt 0:00:50]} 22. Rfe1 {[%emt 0:00:33]} fxg3 {[%emt 0:01:23]} 23. hxg3 {[%emt 0:01:09]} Bd4 {[%emt 0:00:26]} 24. Ra3 {[%emt 0:01:15]} Bg4 {[%emt 0:00:12]} 25. Qf4 {[%emt 0:00:34]} Qh5 {[%emt 0:00:23]} 26. Bf1 {[%emt 0:00:34]} Rbd8 {[%emt 0:01:36]} 27. Bg2 {[%emt 0:00:17]} g5 {[%emt 0:00:39]} 28. Qc7 {[%emt 0:00:44]} Rd7 {[%emt 0:00:04]} 29. Qb6 {[%emt 0:00:10]} Rxd5 {[%emt 0:00:16]} 30. Qxb7 {[%emt 0:00:22]} Rf5 {[%emt 0:00:33]} 31. Ne3 {[%emt 0:00:25]} Rf6 {[%emt 0:00:08]} 32. Rb3 {[%emt 0:00:23]} Bf3 {[%emt 0:00:39]} 33. g4 {[%emt 0:00:44]} Bxg4 {[%emt 0:00:04]} 34. Rb6 {[%emt 0:00:11]} Rf4 {[%emt 0:00:54]} 35. Qc6 {[%emt 0:00:12]} Re6 {[%emt 0:00:04]} 36. Qa8+ {[%emt 0:00:09]} Kh7 {[%emt 0:00:02]} 37. Rxe6 {[%emt 0:00:08]} Bxe6 {[%emt 0:00:02]} 38. Qxa6 {[%emt 0:00:06]} Qh4 {[%emt 0:00:02]} 39. Qe2 {[%emt 0:00:02]} g4 {[%emt 0:00:06]} 40. e5 {[%emt 0:00:06]} Kg7 {[%emt 0:00:03]} 41. a6 {[%emt 0:00:02]} g3 {[%emt 0:00:03]} 42. f3 {[%emt 0:00:12]} Qh2+ {[%emt 0:00:06]} 43. Kf1 {[%emt 0:00:01]} Bh3 {[%emt 0:00:03]} 44. Ng4 {[%emt 0:00:16]} Qg1# {[%emt 0:00:46]} 0-1

[Event "Grand Prix Romania 1st Stage 2024"]
[Site "Bucuresti"]
[Date "2024.03.24"]
[Round "8.35"]
[White "Stoyanov, Tsvetan"]
[Black "Maria, Lia-Alexandra"]
[Result "1-0"]
[ECO "A29"]
[WhiteElo "2465"]
[BlackElo "1996"]
[Annotator "RC"]
[PlyCount "53"]
[EventDate "2024.03.20"]
[EventType "swiss"]
[EventCountry "ROU"]
[SourceTitle "playchess.com"]
[Source "ChessBase"]
[SourceQuality "1"]
[TimeControl "900+5"]

1. c4 {[%emt 0:00:01]} e5 {[%emt 0:00:02]} 2. Nc3 {[%emt 0:00:01]} Nf6 {[%emt 0:00:02]} 3. Nf3 {[%emt 0:00:01]} Nc6 {[%emt 0:00:02]} 4. g3 {[%emt 0:00:01]} Bb4 {[%emt 0:01:39]} 5. Nd5 {[%emt 0:00:02]} e4 {[%emt 0:02:27]} 6. Nh4 {[%emt 0:00:01]} O-O {[%emt 0:01:23]} 7. Bg2 {[%emt 0:00:02]} Re8 {[%emt 0:00:24]} 8. O-O {[%emt 0:00:03]} d6 {[%emt 0:00:37]} 9. b3 {[%emt 0:00:01]} g5 {[%emt 0:03:06]} 10. Bb2 {[%emt 0:00:02]} Nxd5 {[%emt 0:00:01]} 11. cxd5 {[%emt 0:00:01]} Nb8 {[%emt 0:00:19]} 12. Qc2 {[%emt 0:01:46]} gxh4 {[%emt 0:00:05]} 13. a3 {[%emt 0:02:20]} Ba5 {[%emt 0:00:13]} 14. b4 {[%emt 0:00:56]} Bb6 {[%emt 0:00:01]} 15. Bxe4 {[%emt 0:00:02]} hxg3 {[%emt 0:00:43]} 16. hxg3 {[%emt 0:02:49]} Qg5 {[%emt 0:00:24]} 17. Kg2 {[%emt 0:00:54]} Qg4 {[%emt 0:01:47]} 18. Bxh7+ {[%emt 0:03:13]} Kf8 {[%emt 0:00:01]} 19. e3 {[%emt 0:00:26]} Qh3+ {[%emt 0:03:24]} 20. Kg1 {[%emt 0:04:03]} Bg4 {[%emt 0:00:00]} 21. Be4 {[%emt 0:00:00]} Nd7 {[%emt 0:00:00]} 22. Bg2 {[%emt 0:00:00]} Qh6 {[%emt 0:00:00]} 23. Qc4 {[%emt 0:00:00]} Bh3 {[%emt 0:00:00]} 24. f4 {[%emt 0:00:00]} Bf5 {[%emt 0:00:00]} 25. Kf2 {[%emt 0:00:00]} Nf6 {[%emt 0:00:00]} 26. Rh1 {[%emt 0:00:00]} Qg6 {[%emt 0:00:25]} 27. Bd4 {[%emt 0:00:00]} 1-0